bitfinex-derivatives/quotes_ETHF0:USTF0_20251024
["timestamp","ask_amount","ask_price","bid_price","bid_amount"]
[1761282481258,0.4981,3967.7,3967.6,0.54538]
[1761282481458,0.4981,3967.7,3967.6,10.51736926]
[1761282481860,3.9252,3968.0,3967.9,0.51474]
[1761282482263,3.92825913,3968.0,3967.9,0.51474]
[1761282482455,3.92825913,3968.0,3967.9,1.37272926]
[1761282483057,4.31815913,3968.0,3967.9,1.37272926]
[1761282483559,4.30675913,3968.0,3967.9,1.37272926]
[1761282483766,10.5203,3969.0,3968.4,0.0918]
[1761282483767,0.7174,3968.5,3968.4,0.0918]
[1761282483954,3.2078,3968.8,3968.7,0.51465]
[1761282484162,4.0958,3968.8,3968.7,0.51465]
[1761282484458,0.4981,3968.8,3968.7,1.37263926]
[1761282484652,0.50079487,3968.8,3968.7,1.40323926]
[1761282487862,0.50079487,3968.8,3968.7,10.51523926]
[1761282488771,0.4981,3969.4,3969.3,0.51458]
[1761282489064,0.4981,3969.7,3969.6,0.0612]
[1761282489265,0.4981,3969.7,3969.6,9.1722]
[1761282489966,0.50117592,3969.7,3969.6,10.03018926]
[1761282491066,0.89107592,3969.7,3969.6,10.16425538]
[1761282491363,0.50117592,3969.7,3969.6,10.16425538]
[1761282491562,0.00307592,3969.7,3969.6,10.19485538]
[1761282491972,0.50117592,3969.7,3969.6,10.19485538]
[1761282492570,0.50117592,3969.7,3969.6,13.40265538]
[1761282493173,0.00307592,3969.7,3969.6,13.40265538]
[1761282494163,5.92e-06,3969.7,3969.6,14.26064464]
[1761282494566,3.5977,3970.9,3970.3,0.5287]
[1761282494766,3.5977,3970.9,3970.0,0.1762]
[1761282494767,3.5977,3970.9,3970.8,1.56868926]
[1761282494973,0.3899,3970.9,3970.8,11.65759926]
[1761282495666,0.00234762,3970.9,3970.8,11.13178397]
[1761282496072,0.00234762,3970.9,3970.8,11.66048397]
[1761282496268,0.5978,3971.5,3971.4,1.69254]
[1761282496575,3.2078,3971.7,3971.6,1.69252]
[1761282496576,3.7059,3971.7,3971.6,1.69252]
[1761282496871,4.0958,3971.7,3971.6,1.69252]
[1761282497275,0.89118767,3971.7,3971.6,1.69252]
[1761282497661,0.00318767,3971.7,3971.6,1.69252]
[1761282499975,0.89118767,3971.7,3971.6,1.69252]
[1761282500774,0.00318767,3971.7,3971.6,1.69252]
[1761282501682,0.50128767,3971.7,3971.6,1.69252]
[1761282501978,0.89118767,3971.7,3971.6,1.69252]
[1761282504084,0.00318767,3971.7,3971.6,1.69252]
[1761282505686,0.50128767,3971.7,3971.6,1.69252]
[1761282508986,0.00318767,3971.7,3971.6,1.69252]
[1761282510379,0.50128767,3971.7,3971.6,1.69252]
[1761282510880,0.50128767,3971.7,3971.6,4.19144889]
[1761282511280,0.4981,3971.6,3971.5,0.45313]
[1761282511486,1.1561,3971.6,3971.5,9.54913]
[1761282511984,1.1561,3970.9,3970.8,0.00288471]
[1761282512184,1.1561,3970.9,3970.2,3.2078]
[1761282512185,1.1561,3970.3,3970.2,0.45327]
[1761282512388,0.4981,3970.3,3970.2,8.98789889]
[1761282513290,0.4981,3970.3,3970.2,8.99114752]
[1761282513790,1.1561,3970.3,3970.2,9.55151863]
[1761282514187,1.1561,3970.3,3970.2,0.00324863]
[1761282514488,1.1561,3970.3,3970.2,7.16324863]
[1761282514893,1.1561,3970.3,3970.2,9.09824863]
[1761282515290,1.39288699,3970.3,3970.2,9.09824863]
[1761282515492,1.1561,3970.3,3970.2,9.09824863]
[1761282515691,1.1561,3970.3,3970.2,9.42234863]
[1761282515990,1.1561,3970.3,3970.2,9.74884863]
[1761282516384,1.1561,3970.3,3970.2,10.19794863]
[1761282517793,1.0039,3970.5,3970.4,1.0997]
[1761282518084,1.1561,3970.4,3970.3,0.77737]
[1761282518287,1.1561,3970.4,3970.3,9.87237]
[1761282518593,1.1561,3970.4,3970.3,10.19887]
[1761282518793,1.1561,3970.4,3970.3,10.91344136]
[1761282519995,1.393259,3970.4,3970.3,0.71457136]
[1761282520193,1.393259,3970.4,3970.3,9.80957136]
[1761282521092,1.393259,3970.4,3970.3,9.80857136]
[1761282521495,1.393259,3970.4,3970.3,9.094]
[1761282521795,1.393259,3970.4,3970.3,9.80857136]
[1761282522796,1.393259,3970.4,3970.3,0.71457136]
[1761282523095,1.1561,3970.3,3970.2,0.45651863]
[1761282523296,1.393259,3970.3,3970.2,10.26508999]
[1761282524398,1.393259,3970.3,3970.2,1.17108999]
[1761282525497,1.393259,3970.3,3970.2,1.49518999]
[1761282527192,0.4981,3971.3,3971.2,1.0997]
[1761282527399,1.0039,3971.5,3971.4,1.0997]
[1761282527598,1.0039,3971.5,3971.4,0.6506]
[1761282527599,1.3385,3971.5,3971.4,0.6506]
[1761282528194,0.8215,3971.5,3971.4,1.0997]
[1761282528386,1.3385,3971.5,3971.4,0.3241]
[1761282528598,1.3385,3971.5,3971.4,9.092]
[1761282528794,1.3385,3971.5,3971.4,10.1917]
[1761282529503,1.3385,3971.5,3971.4,9.7426]
[1761282530400,0.4981,3971.5,3971.4,10.1917]
[1761282530593,1.0039,3971.5,3971.4,10.1917]
[1761282530793,1.3385,3971.5,3971.4,9.7426]
[1761282531396,4.03248767,3971.7,3971.6,1.0997]
[1761282531596,4.36708767,3971.7,3971.6,0.6506]
[1761282532201,1.15928767,3971.7,3971.6,0.6506]
[1761282532597,1.15928767,3971.7,3971.6,1.0997]
[1761282532801,0.50128767,3971.7,3971.6,1.0997]
[1761282532998,0.706,3972.0,3971.9,0.45309]
[1761282533308,4.0293,3972.2,3972.1,1.55276]
[1761282533695,0.4981,3972.2,3972.1,1.55276]
[1761282534101,0.50098084,3972.2,3972.1,1.55276]
[1761282534501,1.15898084,3972.2,3972.1,1.25511156]
[1761282534710,1.15898084,3972.2,3972.1,1.70421156]
[1761282536909,0.50098084,3972.2,3972.1,1.70421156]
[1761282537312,0.85192748,3973.0,3972.9,0.45297]
[1761282537497,10.301,3974.0,3972.9,0.45297]
[1761282537498,0.1824,3974.0,3972.9,14.53213]
[1761282537707,0.1824,3975.0,3973.9,0.71457136]
[1761282537905,0.1824,3975.0,3974.9,0.71457136]
[1761282538107,0.1824,3975.0,3974.9,10.26731136]
[1761282538409,0.50889624,3975.0,3974.9,10.26926063]
[1761282538614,0.18549624,3975.0,3974.9,10.26926063]
[1761282538910,0.18549624,3975.0,3974.9,12.04933675]
[1761282539304,0.94329624,3975.0,3974.9,2.49659675]
[1761282539504,0.94329624,3975.0,3974.9,11.61359675]
[1761282539707,1.58049624,3975.0,3974.9,11.61359675]
[1761282540309,1.14169624,3975.0,3974.9,11.61159675]
[1761282540507,1.14169624,3975.0,3974.9,2.49659675]
[1761282540713,1.14169624,3975.0,3974.9,11.61159675]
[1761282541505,1.58049624,3975.0,3974.9,11.61159675]
[1761282541713,1.58049624,3975.0,3974.9,11.60859675]
[1761282544210,0.64029624,3975.0,3974.9,11.60859675]
[1761282544506,0.1824,3976.0,3975.9,0.3313]
[1761282544507,0.9402,3976.0,3975.9,0.3313]
[1761282544711,0.9402,3976.0,3975.9,11.93294748]
[1761282545318,0.94237659,3976.0,3975.9,11.93294748]
[1761282545811,0.50357659,3976.0,3975.9,12.82387748]
[1761282546001,0.50357659,3976.0,3974.8,12.45083]
[1761282546002,0.2816,3975.0,3974.9,3.20974927]
[1761282546205,1.0394,3975.0,3974.9,7.73794927]
[1761282546401,1.6766,3975.0,3974.9,7.73794927]
[1761282546703,1.6766,3975.0,3974.9,8.06924927]
[1761282546900,1.6766,3975.0,3974.9,0.00194927]
[1761282547106,1.6766,3975.0,3974.9,8.86494927]
[1761282547511,1.6766,3975.0,3974.9,9.19624927]
[1761282547810,1.6766,3975.0,3974.9,9.10894927]
[1761282548710,6.6766,3975.0,3974.9,0.00194927]
[1761282548915,1.395,3973.8,3973.7,0.7696]
[1761282549214,1.395,3973.8,3973.7,8.4356]
[1761282549414,0.6372,3973.8,3973.7,9.19341654]
[1761282549614,0.2816,3974.0,3973.9,0.7696]
[1761282549615,1.2378,3974.0,3973.9,0.7696]
[1761282549809,1.2378,3974.0,3973.9,3.26616567]
[1761282550012,1.6766,3974.0,3973.9,0.00191819]
[1761282551717,0.6372,3974.0,3973.9,1.38171819]
[1761282551931,0.2816,3975.0,3973.9,1.38171819]
[1761282551932,0.9562,3974.9,3974.8,0.4383]
[1761282552120,0.6372,3974.9,3974.8,13.47620748]
[1761282552313,3.2078,3975.7,3975.4,0.45269]
[1761282552620,0.28377659,3976.0,3975.5,0.45267]
[1761282552815,0.28377659,3976.0,3975.4,11.65064748]
[1761282552816,0.6372,3975.9,3975.7,0.45264]
[1761282554014,0.00217659,3976.0,3975.9,1.06283]
[1761282554221,3.2078,3977.1,3976.9,0.6755]
[1761282554425,3.2078,3977.5,3977.2,0.6755]
[1761282554616,3.2078,3977.5,3977.3,0.6755]
[1761282554921,3.2078,3977.5,3977.3,1.12796]
[1761282555126,3.21056101,3977.5,3977.4,0.6755]
[1761282555315,0.00276101,3977.5,3977.4,0.6755]
[1761282556325,0.00276101,3977.5,3977.4,4.1435]
[1761282557718,0.63996101,3977.5,3977.3,0.00232695]
[1761282558124,0.63996101,3977.5,3977.3,0.45478695]
[1761282558325,0.63996101,3977.5,3977.4,9.138]
[1761282558627,0.63996101,3977.5,3977.4,9.8135]
[1761282558628,0.00276101,3977.5,3977.4,9.8135]
[1761282559516,3.845,3978.3,3978.1,0.6755]
[1761282559720,0.6372,3978.2,3977.7,2.49464748]
[1761282559920,0.6372,3978.2,3977.4,6.72460118]
[1761282559921,3.2078,3977.8,3977.4,2.49464748]
[1761282560118,0.6372,3977.7,3977.3,1.13028695]
[1761282560324,0.6372,3977.7,3977.4,9.132]
[1761282560524,0.63972029,3977.7,3977.4,9.132]
[1761282560722,0.2816,3977.4,3977.3,0.00232695]
[1761282561020,0.9188,3977.4,3977.3,9.13332695]
[1761282561225,0.6372,3977.4,3977.3,9.80882695]
[1761282561529,0.00252029,3977.7,3977.6,0.6755]
[1761282561924,0.6372,3978.4,3978.2,0.6755]
[1761282562126,0.6372,3978.4,3978.3,9.129]
[1761282562933,0.63962069,3978.4,3978.3,9.129]
[1761282563930,0.63962069,3978.4,3978.3,9.8045]
[1761282564130,0.63962069,3978.4,3978.3,0.6755]
[1761282564332,0.63962069,3978.4,3978.3,9.8015]
[1761282564633,0.63962069,3978.4,3978.3,9.123]
[1761282565535,0.63962069,3978.4,3978.1,3.62252748]
[1761282565734,0.63962069,3978.4,3978.3,9.122]
[1761282566440,0.00242069,3978.4,3978.3,9.7975]
[1761282566641,0.00242069,3978.4,3978.3,10.5671]
[1761282567041,0.95862069,3978.4,3978.3,10.5671]
[1761282567247,1.39742069,3978.4,3978.3,9.8916]
[1761282567843,0.6397,3978.3,3977.9,0.6755]
[1761282568045,1.0777,3977.9,3977.8,1.97481]
[1761282568251,1.0777,3977.9,3977.8,10.6354]
[1761282568252,1.5036,3977.9,3977.8,10.6354]
[1761282568745,1.5036,3977.9,3977.8,1.5224]
[1761282569052,1.5036,3977.9,3977.8,9.961]
[1761282571156,1.5029,3977.4,3977.3,0.00232695]
[1761282571454,4.2885,3978.0,3977.8,0.6396]
[1761282571759,4.2885,3978.0,3977.9,1.4778]
[1761282572052,4.7107,3978.0,3977.9,1.4778]
[1761282572649,1.5029,3978.0,3977.9,1.4778]
[1761282573054,1.5029,3978.0,3977.7,10.152]
[1761282573055,1.5029,3977.8,3977.7,10.152]
[1761282573256,1.5029,3977.8,3977.7,10.5808]
[1761282574857,1.0807,3977.8,3977.7,10.5808]
[1761282575355,0.4382,3977.8,3977.7,10.5808]
[1761282575556,4.2885,3978.0,3977.9,1.4778]
[1761282575951,3.646,3978.0,3977.9,1.4778]
[1761282576150,4.2885,3978.0,3977.9,1.4778]
[1761282577451,1.5029,3977.7,3977.3,0.00232695]
[1761282577652,1.5029,3977.0,3976.9,10.115]
[1761282577847,1.5029,3977.0,3976.9,10.5438]
[1761282578355,0.4382,3976.7,3976.6,0.4094]
[1761282578559,1.5029,3976.5,3976.4,0.4094]
[1761282578859,0.4382,3976.5,3976.4,10.3756503]
[1761282579060,1.0807,3976.5,3976.4,10.3756503]
[1761282579551,1.5029,3976.5,3976.4,10.3756503]
[1761282580049,1.5029,3976.5,3976.4,0.4112503]
[1761282580255,1.7502,3976.5,3976.4,9.5072503]
[1761282580455,1.5029,3976.5,3976.4,10.5756503]
[1761282580654,0.4382,3976.5,3976.4,10.5756503]
[1761282581262,1.7502,3976.5,3975.8,0.64678622]
[1761282581453,1.5029,3975.9,3975.8,1.4778]
[1761282581758,1.5029,3975.9,3975.8,2.12642107]
[1761282582059,1.5029,3975.9,3975.8,1.4778]
[1761282582255,1.5029,3975.9,3975.8,1.4902417]
[1761282582462,1.5029,3975.9,3975.8,2.1298417]
[1761282582761,4.2885,3976.2,3976.1,0.4094]
[1761282582956,4.7107,3976.2,3976.1,1.049]
[1761282583461,4.2885,3976.2,3976.1,1.4778]
[1761282583658,3.2078,3976.2,3976.1,1.4778]
[1761282583858,0.6425,3976.6,3976.1,2.12720305]
[1761282584057,1.0807,3976.5,3976.4,1.4778]
[1761282584653,1.0807,3976.1,3976.0,0.6396]
[1761282584850,1.5029,3976.1,3976.0,10.14488701]
[1761282585456,1.5029,3976.1,3976.0,1.69848701]
[1761282585665,1.5029,3976.1,3976.0,10.78248701]
[1761282585852,1.5029,3976.1,3976.0,11.21128701]
[1761282586054,0.2473,3977.5,3977.0,0.4094]
[1761282586055,4.7107,3977.1,3977.0,0.4094]
[1761282586368,0.4382,3976.1,3976.0,1.93041]
[1761282586557,1.0807,3976.1,3976.0,11.67158486]
[1761282586863,3.8503,3976.4,3976.0,11.67158486]
[1761282587062,0.8604,3976.3,3976.2,0.4094]
[1761282587464,0.8604,3976.3,3976.2,1.049]
[1761282587761,1.5029,3976.3,3975.9,0.45262]
[1761282587968,1.5029,3975.9,3975.8,0.00254675]
[1761282588262,1.5029,3975.9,3975.8,9.50294675]
[1761282588562,1.0807,3975.9,3975.8,10.57134675]
[1761282588759,1.5029,3975.9,3975.8,10.57134675]
[1761282589165,1.5029,3975.9,3975.8,0.84074675]
[1761282589366,1.5029,3975.9,3975.8,0.00254675]
[1761282589563,1.5029,3975.9,3975.8,0.41194675]
[1761282590767,1.5029,3975.9,3975.8,1.48034675]
[1761282591565,1.5029,3975.9,3975.8,0.41194675]
[1761282591959,1.5029,3975.9,3975.8,1.48034675]
[1761282593564,1.5029,3975.9,3975.8,0.00254675]
[1761282594268,6.5029,3975.9,3975.8,0.00254675]
[1761282595066,1.5029,3975.9,3975.8,0.00254675]
[1761282595370,1.5029,3975.9,3975.8,0.41194675]
[1761282595571,1.5029,3975.9,3975.8,1.48034675]
[1761282596072,1.5029,3975.9,3975.8,0.00254675]
[1761282596366,6.5029,3975.9,3975.8,0.00254675]
[1761282596573,1.5029,3975.9,3975.8,0.00254675]
[1761282599964,1.3537,3975.1,3975.0,1.4133]
[1761282600161,1.3537,3975.1,3974.6,6.0318]
[1761282600162,0.4343,3975.3,3975.2,0.9783]
[1761282600369,0.4343,3975.3,3975.2,0.435]
[1761282600370,1.3537,3975.3,3975.2,0.435]
[1761282600871,1.5805,3975.0,3974.9,0.435]
[1761282601066,3.2078,3975.1,3975.0,0.45273]
[1761282601271,0.43634226,3975.3,3975.2,1.4133]
[1761282601570,0.98644226,3975.3,3975.2,1.4133]
[1761282602165,0.43634226,3975.3,3975.2,1.4133]
[1761282602359,0.00204226,3975.3,3975.2,1.4133]
[1761282603166,10.301,3976.4,3975.2,5.8232]
[1761282603366,0.9844,3976.4,3976.3,1.4133]
[1761282603562,0.4343,3976.4,3976.3,1.4133]
[1761282604374,0.43627852,3976.4,3976.3,1.4133]
[1761282606580,1.35567852,3976.4,3976.3,1.4133]
[1761282611581,0.5501,3976.3,3975.8,1.0251]
[1761282611781,0.80557852,3976.4,3975.8,10.4963]
[1761282611782,1.3537,3975.9,3975.8,10.4963]
[1761282612380,1.3537,3975.9,3975.5,1.04277]
[1761282612579,0.5501,3975.8,3975.6,0.5901]
[1761282612784,1.3537,3975.7,3975.6,1.4133]
[1761282613985,4.5615,3975.7,3975.6,1.4133]
[1761282616282,0.5501,3976.1,3975.6,1.4133]
[1761282616579,0.00197852,3976.4,3976.3,1.86588]
[1761282618389,0.43627852,3976.4,3976.3,1.86588]
[1761282620489,1.35567852,3976.4,3976.3,1.0251]
[1761282620787,1.35567852,3976.4,3976.3,0.435]
[1761282620978,1.35567852,3976.4,3976.3,1.4133]
[1761282622476,1.35567852,3976.4,3976.3,1.0251]
[1761282622883,1.35567852,3976.4,3976.3,1.4133]
[1761282623084,0.98637852,3976.4,3976.3,1.4133]
[1761282624789,1.35567852,3976.4,3976.3,1.4133]
[1761282627783,0.98637852,3976.4,3976.3,1.4133]
[1761282627985,0.34447852,3976.4,3976.3,1.4133]
[1761282628190,0.84847852,3976.4,3976.3,1.4133]
[1761282628888,1.20917852,3976.4,3976.2,0.45259]
[1761282629084,1.2133,3976.3,3976.2,0.3423]
[1761282629385,0.5455,3976.2,3976.1,0.7949]
[1761282629587,1.2548,3976.2,3976.1,0.7949]
[1761282630084,1.2548,3976.2,3976.1,0.3423]
[1761282630284,0.3606,3975.9,3975.8,0.5394]
[1761282630595,1.2548,3975.9,3975.8,0.3423]
[1761282630884,0.5455,3975.8,3975.5,1.2218]
[1761282631089,1.2548,3975.6,3975.5,1.2218]
[1761282631588,1.2548,3975.6,3975.5,0.6824]
[1761282631790,1.2548,3975.6,3975.4,9.08]
[1761282631984,1.2548,3975.4,3975.3,9.53269]
[1761282632188,1.2548,3975.4,3975.3,9.08]
[1761282632388,1.2548,3975.4,3975.3,0.3423]
[1761282632587,0.7093,3975.1,3975.0,1.67453]
[1761282632787,0.7093,3975.1,3975.0,10.75453]
[1761282632788,1.2548,3975.1,3975.0,10.75453]
[1761282633596,0.9061,3975.1,3975.0,10.75453]
[1761282633988,0.9061,3975.1,3975.0,10.96153]
[1761282634389,0.9061,3975.1,3975.0,1.88153]
[1761282634698,0.9061,3975.1,3975.0,10.96153]
[1761282635291,0.9061,3975.1,3975.0,1.4288]
[1761282635485,0.9061,3975.1,3975.0,10.5088]
[1761282636692,0.2027,3975.5,3975.4,0.6824]
[1761282636693,0.9061,3975.5,3975.4,0.6824]
[1761282636897,0.9061,3975.5,3975.4,1.2218]
[1761282636898,1.2548,3975.5,3975.4,1.2218]
[1761282637196,1.4575,3975.5,3975.4,0.6824]
[1761282637402,1.4575,3975.5,3975.4,1.2218]
[1761282638398,1.4575,3975.5,3975.4,0.6824]
[1761282640404,1.4575,3975.5,3975.4,1.2218]
[1761282640806,1.4575,3975.5,3975.4,0.6824]
[1761282641101,1.4575,3975.0,3974.9,0.34476347]
[1761282642006,1.4575,3975.0,3974.9,0.88416347]
[1761282642207,1.2548,3975.0,3974.9,1.22426347]
[1761282642704,1.4575,3975.0,3974.9,1.22426347]
[1761282642906,1.2548,3975.0,3974.9,1.22426347]
[1761282643802,1.4575,3975.0,3974.9,0.34476347]
[1761282643998,1.4575,3975.0,3974.9,0.00246347]
[1761282645303,1.2548,3974.3,3974.2,0.3423]
[1761282645905,0.2027,3974.0,3973.7,3.2078]
[1761282646103,0.2027,3974.0,3972.9,3.2078]
[1761282646104,1.2548,3973.4,3972.9,3.2078]
[1761282646410,1.4575,3973.0,3972.9,9.0234935]
[1761282646708,1.4575,3973.0,3972.9,1.2244935]
[1761282646709,1.2548,3973.0,3972.9,1.2244935]
[1761282647108,1.2548,3973.0,3972.9,0.6850935]
[1761282647109,1.4575,3973.0,3972.9,0.6850935]
[1761282647407,1.4575,3973.0,3972.9,1.2244935]
[1761282647605,0.3606,3973.3,3973.2,0.3423]
[1761282647906,1.2548,3973.3,3973.2,1.2218]
[1761282648804,0.00277349,3973.4,3973.3,1.67472]
[1761282649103,0.00277349,3973.4,3973.2,16.57610267]
[1761282649104,1.2548,3973.0,3972.9,1.6774635]
[1761282650099,0.00277349,3973.4,3973.3,1.2218]
[1761282650297,0.90887349,3973.4,3973.3,1.2218]
[1761282650706,1.25757349,3973.4,3973.3,1.2218]
[1761282650905,1.25757349,3973.4,3973.3,0.6824]
[1761282651109,1.25757349,3973.4,3973.3,0.3423]
[1761282651411,0.5455,3973.3,3973.1,0.79524]
[1761282651599,0.71207349,3973.4,3973.1,0.79524]
[1761282651600,0.7093,3973.2,3973.1,1.67474]
[1761282651799,1.2548,3973.2,3973.1,1.67474]
[1761282652210,1.2548,3973.2,3973.1,0.79524]
[1761282652408,1.2548,3973.2,3973.1,1.67474]
[1761282653099,1.2548,3973.2,3973.1,0.79524]
[1761282655011,1.2548,3973.2,3973.1,0.3423]
[1761282657412,1.2548,3973.2,3973.1,1.2218]
[1761282658715,1.2548,3973.2,3973.1,0.3423]
[1761282660023,1.29,3973.0,3972.9,0.3511935]
[1761282660415,1.29,3973.0,3972.9,9.8861635]
[1761282661827,1.29,3973.0,3972.9,10.6697635]
[1761282663329,1.29,3973.0,3972.9,10.1848635]
[1761282663633,1.29,3973.0,3972.9,9.7318935]
[1761282663822,5.21154631,3973.0,3972.9,0.0026935]
[1761282664023,4.72984929,3973.0,3972.9,0.0026935]
[1761282664427,5.4435956,3973.0,3972.9,0.0026935]
[1761282664628,4.72984929,3973.0,3972.9,0.3511935]
[1761282664829,4.4978,3973.0,3972.9,0.3511935]
[1761282665222,4.4978,3973.0,3972.9,1.1347935]
[1761282665429,4.305,3973.0,3972.9,1.1347935]
[1761282665823,1.0972,3973.0,3972.9,1.1347935]
[1761282666631,1.29,3973.0,3972.9,0.6498935]
[1761282666932,1.29,3973.0,3972.9,0.0026935]
[1761282668332,2.00374631,3973.0,3972.9,0.0026935]
[1761282668535,2.23603861,3973.0,3972.9,0.0026935]
[1761282668926,1.5222923,3973.0,3972.9,0.0026935]
[1761282669924,1.5222923,3973.0,3972.9,0.8360935]
[1761282670239,1.5222923,3973.0,3972.9,0.0026935]
[1761282671037,0.8794923,3973.0,3972.9,0.3511935]
[1761282671239,1.5222923,3973.0,3972.9,1.1347935]
[1761282671442,1.5222923,3973.0,3972.9,0.3511935]
[1761282671738,1.5222923,3973.0,3972.9,0.0026935]
[1761282672738,1.5222923,3973.0,3972.9,0.3511935]
[1761282674346,1.5222923,3973.0,3972.9,0.0026935]
[1761282675038,0.6428,3972.0,3971.9,1.58518]
[1761282675337,1.3294923,3972.0,3971.9,10.66718]
[1761282675839,1.0305923,3972.0,3971.9,10.66718]
[1761282676041,1.0305923,3972.0,3971.9,10.66950191]
[1761282676541,1.0305923,3972.0,3971.9,11.38324822]
[1761282676731,1.0305923,3972.0,3971.9,12.01981092]
[1761282678441,1.0305923,3972.0,3971.9,10.66950191]
[1761282680941,1.3294923,3972.0,3971.9,10.66950191]
[1761282683846,1.3294923,3972.0,3971.9,10.66850191]
[1761282684047,1.5222923,3972.0,3971.9,1.58750191]
[1761282684346,1.3294923,3972.0,3971.9,11.38224822]
[1761282686647,1.3294923,3972.0,3971.9,10.66850191]
[1761282686844,1.3294923,3972.0,3971.9,11.38224822]
[1761282687248,1.3294923,3972.0,3971.9,10.66850191]
[1761282689448,1.5038923,3972.0,3971.9,9.88390191]
[1761282689747,1.5038923,3972.0,3971.9,9.43082191]
[1761282689944,1.5038923,3972.0,3971.3,4.34066]
[1761282689945,0.4275,3971.9,3971.4,0.4187]
[1761282690151,0.7055923,3972.0,3971.3,3.2078]
[1761282690152,1.0003,3971.4,3971.3,3.2078]
[1761282690445,1.2325923,3971.4,3971.3,3.66095]
[1761282690846,1.0003,3971.2,3971.1,0.9787]
[1761282691141,1.2325923,3971.2,3971.1,10.06124321]
[1761282691344,1.2325923,3971.2,3971.1,9.64254321]
[1761282691938,1.94633861,3971.2,3971.1,0.00254321]
[1761282692138,5.15413861,3971.2,3971.1,0.00254321]
[1761282692646,4.4403923,3971.2,3971.1,0.98124321]
[1761282693548,0.2322923,3971.2,3971.1,0.98124321]
[1761282694342,3.915,3971.6,3971.5,0.9787]
[1761282694642,3.915,3971.6,3971.5,1.59543]
[1761282694643,3.43969549,3971.6,3971.5,1.59543]
[1761282694845,0.23189549,3971.6,3971.5,1.59543]
[1761282695842,3.2078,3972.0,3971.9,1.43178]
[1761282695843,3.915,3972.0,3971.9,1.43178]
[1761282696044,3.915,3972.0,3971.9,10.51078]
[1761282696045,0.23186605,3972.0,3971.9,10.51078]
[1761282697346,0.4275,3972.3,3972.1,0.45306]
[1761282697347,0.7072,3972.3,3972.1,0.45306]
[1761282697551,0.5728,3972.3,3972.2,0.9787]
[1761282697749,0.80473695,3972.3,3972.2,0.9787]
[1761282698252,1.23223695,3972.3,3972.2,0.9787]
[1761282700050,0.23193695,3972.3,3972.2,0.9787]
[1761282701964,0.65943695,3972.3,3972.2,0.9787]
[1761282702452,0.23193695,3972.3,3972.2,0.9787]
[1761282703670,0.23213297,3972.3,3972.2,0.7075]
[1761282703954,0.5728,3972.3,3972.2,9.6655]
[1761282704154,1.23243297,3972.3,3972.2,9.6655]
[1761282704755,1.23243297,3972.3,3972.2,0.7075]
[1761282704956,1.23243297,3972.3,3972.2,9.7845]
[1761282705347,1.23243297,3972.3,3972.2,0.7075]
[1761282705956,1.23243297,3972.3,3972.2,9.3658]
[1761282708255,1.23243297,3972.3,3972.2,9.7845]
[1761282711165,1.23243297,3972.3,3972.2,10.0557]
[1761282711458,0.94070127,3972.3,3972.2,0.9787]
[1761282711657,0.66100127,3972.3,3972.2,0.9787]
[1761282711857,0.94070127,3972.3,3972.2,10.0537]
[1761282712252,1.23380127,3972.3,3972.2,10.0537]
[1761282712658,0.94070127,3972.3,3972.2,10.0537]
[1761282713665,1.23380127,3972.3,3972.2,10.0537]
[1761282716760,1.23380127,3972.3,3972.2,10.0517]
[1761282717562,0.23350127,3972.3,3972.2,10.0517]
[1761282718156,1.0003,3972.2,3972.1,1.01306]
[1761282718356,1.23380127,3972.2,3972.1,10.08606]
[1761282718558,1.23380127,3972.2,3972.1,9.52606]
[1761282718957,1.23380127,3972.2,3972.1,9.81486]
[1761282719162,1.23380127,3972.2,3972.1,0.6634]
[1761282719355,1.23380127,3972.2,3972.1,9.7364]
[1761282719755,1.23380127,3972.2,3972.1,9.9904]
[1761282720062,1.23380127,3972.2,3972.1,0.9174]
[1761282721962,1.23380127,3972.2,3972.1,9.9894]
[1761282723063,1.23380127,3972.2,3972.0,0.45307]
[1761282723266,1.15150127,3972.1,3972.0,0.45307]
[1761282723463,1.15150127,3972.1,3972.0,0.73907]
[1761282723663,1.15150127,3972.1,3972.0,1.36767]
[1761282724361,1.15150127,3972.1,3972.0,10.43867]
[1761282725764,1.15150127,3972.1,3972.0,1.36767]
[1761282728471,0.89800127,3972.1,3972.0,10.43767]
[1761282728673,0.89800127,3972.1,3972.0,1.52657]
[1761282729371,0.89800127,3972.1,3972.0,1.36767]
[1761282730174,0.89800127,3972.1,3972.0,1.52657]
[1761282732271,0.23350127,3972.1,3972.0,5.37341762]
[1761282732468,0.23350127,3972.1,3972.0,4.54574762]
[1761282732775,0.6645,3972.6,3972.5,0.99302]
[1761282732973,0.89857867,3972.6,3972.5,1.36762]
[1761282733969,1.15207867,3972.6,3972.5,1.36762]
[1761282734367,0.23407867,3972.6,3972.5,1.52792]
[1761282735176,0.89857867,3972.6,3972.5,1.52792]
[1761282737278,0.23407867,3972.6,3972.5,1.52792]
[1761282738478,0.61347867,3972.6,3972.5,1.52792]
[1761282739570,0.23407867,3972.6,3972.5,1.52792]
[1761282739777,0.23407867,3972.6,3972.5,2.16619223]
[1761282740382,0.89857867,3972.6,3972.5,2.00589223]
[1761282740578,1.15207867,3972.6,3972.5,9.7256]
[1761282740777,1.15207867,3972.6,3972.5,9.9796]
[1761282741182,0.89857867,3972.6,3972.5,9.9796]
[1761282741379,0.61347867,3972.6,3972.5,9.9796]
[1761282741586,0.23407867,3972.6,3972.5,10.1399]
[1761282743583,0.23407867,3972.6,3972.5,1.0749]
[1761282743782,0.23407867,3972.6,3972.5,10.1389]
[1761282744483,0.23407867,3972.6,3972.5,1.0749]
[1761282744785,0.23407867,3972.6,3972.5,1.71172704]
[1761282744990,0.23407867,3972.6,3972.5,10.1389]
[1761282745187,0.6645,3973.3,3973.2,0.9146]
[1761282745388,0.23636296,3973.3,3973.2,1.36754]
[1761282745785,0.61576296,3973.3,3973.2,1.36754]
[1761282745995,0.90086296,3973.3,3973.2,1.36754]
[1761282746296,0.90086296,3973.3,3972.4,5.00022228]
[1761282746297,0.918,3973.0,3972.9,1.36757]
[1761282746499,1.15436296,3973.0,3972.9,10.43057]